[Event "Titled Tuesday Blitz August 22 Late 2023"]
[White "Bochnicka, Vladimir"]
[Black "Leebit02"]
[WhiteFideId "14943450"]
[WhiteElo "2432"]
[BlackElo "2550"]
[Result "0-1"]
[Round "7"]
[TimeControl "180+1"]
[Date "2023.08.22"]
[WhiteClock "0:00:15"]
[BlackClock "0:00:24"]
[Board "91"]

1. e4 {[%clk 0:03:00]}  c5 {[%clk 0:02:56]} 2. Nf3 {[%clk 0:03:01]}  d6 {[%clk 0:02:56]} 3. d4 {[%clk 0:03:01]}  cxd4 {[%clk 0:02:56]} 4. Nxd4 {[%clk 0:03:02]}  Nf6 {[%clk 0:02:57]} 5. Nc3 {[%clk 0:03:03]}  a6 {[%clk 0:02:53]} 6. h3 {[%clk 0:03:03]}  e6 {[%clk 0:02:52]} 7. g4 {[%clk 0:03:02]}  h6 {[%clk 0:02:50]} 8. Rg1 {[%clk 0:03:01]}  b5 {[%clk 0:02:46]} 9. Bg2 {[%clk 0:02:53]}  Bb7 {[%clk 0:02:42]} 10. Qe2 {[%clk 0:02:49]}  Qc7 {[%clk 0:02:39]} 11. a3 {[%clk 0:02:27]}  Nbd7 {[%clk 0:02:36]} 12. Be3 {[%clk 0:02:27]}  Ne5 {[%clk 0:02:21]} 13. f4 {[%clk 0:02:03]}  Nc4 {[%clk 0:02:20]} 14. Bc1 {[%clk 0:02:04]}  Rc8 {[%clk 0:02:06]} 15. Kf2 {[%clk 0:01:45]}  d5 {[%clk 0:01:43]} 16. e5 {[%clk 0:01:43]}  Bc5 {[%clk 0:01:39]} 17. Be3 {[%clk 0:01:42]}  Ne4+ {[%clk 0:01:29]} 18. Nxe4 {[%clk 0:01:42]}  dxe4 {[%clk 0:01:29]} 19. c3 {[%clk 0:01:43]}  O-O {[%clk 0:01:27]} 20. Rad1 {[%clk 0:01:39]}  Bd5 {[%clk 0:01:17]} 21. Kg3 {[%clk 0:01:36]}  f6 {[%clk 0:01:17]} 22. exf6 {[%clk 0:01:26]}  Rxf6 {[%clk 0:01:17]} 23. Rgf1 {[%clk 0:01:17]}  Rcf8 {[%clk 0:01:08]} 24. Kh2 {[%clk 0:00:48]}  Nxe3 {[%clk 0:01:03]} 25. Qxe3 {[%clk 0:00:48]}  Bd6 {[%clk 0:01:00]} 26. Ne2 {[%clk 0:00:44]}  Rxf4 {[%clk 0:00:33]} 27. Nxf4 {[%clk 0:00:43]}  Bxf4+ {[%clk 0:00:28]} 28. Rxf4 {[%clk 0:00:43]}  Rxf4 {[%clk 0:00:28]} 29. Qg3 {[%clk 0:00:40]}  g5 {[%clk 0:00:26]} 30. Re1 {[%clk 0:00:28]}  Qe5 {[%clk 0:00:24]} 31. Kh1 {[%clk 0:00:16]}  Rf1+ {[%clk 0:00:23]} 32. Kh2 {[%clk 0:00:15]}  Qxg3+ {[%clk 0:00:23]} 33. Kxg3 {[%clk 0:00:15]}  Rxe1 {[%clk 0:00:24]} 0-1


[Site "https://www.chess.com"]

[Event "Titled Tuesday Blitz August 22 Late 2023"]
[White "Guerra Tulcan, Lenin"]
[Black "Balla, Tamas-Kristof"]
[WhiteFideId "3601382"]
[BlackFideId "1208497"]
[WhiteElo "2550"]
[BlackElo "2432"]
[Result "1-0"]
[Round "7"]
[TimeControl "180+1"]
[Date "2023.08.22"]
[WhiteClock "0:01:08"]
[BlackClock "0:00:00"]
[Board "92"]

1. e4 {[%clk 0:03:00]}  c5 {[%clk 0:03:00]} 2. Nf3 {[%clk 0:03:00]}  Nc6 {[%clk 0:03:00]} 3. d4 {[%clk 0:02:59]}  cxd4 {[%clk 0:03:01]} 4. Nxd4 {[%clk 0:03:00]}  e5 {[%clk 0:03:02]} 5. Nb5 {[%clk 0:02:58]}  d6 {[%clk 0:03:02]} 6. c4 {[%clk 0:02:58]}  Be7 {[%clk 0:03:02]} 7. N1c3 {[%clk 0:02:58]}  a6 {[%clk 0:03:02]} 8. Na3 {[%clk 0:02:58]}  f5 {[%clk 0:03:03]} 9. exf5 {[%clk 0:02:56]}  Bxf5 {[%clk 0:03:03]} 10. Bd3 {[%clk 0:02:56]}  Be6 {[%clk 0:03:04]} 11. Qh5+ {[%clk 0:02:49]}  Bf7 {[%clk 0:03:02]} 12. Qf3 {[%clk 0:02:46]}  Nf6 {[%clk 0:02:59]} 13. O-O {[%clk 0:02:44]}  O-O {[%clk 0:02:57]} 14. Qh3 {[%clk 0:02:45]}  Nd4 {[%clk 0:02:40]} 15. Bg5 {[%clk 0:02:40]}  Be6 {[%clk 0:02:36]} 16. Qh4 {[%clk 0:02:27]}  h6 {[%clk 0:02:32]} 17. Bxf6 {[%clk 0:02:27]}  Bxf6 {[%clk 0:02:33]} 18. Qe4 {[%clk 0:02:27]}  Bf5 {[%clk 0:01:57]} 19. Qd5+ {[%clk 0:02:25]}  Be6 {[%clk 0:01:57]} 20. Qxb7 {[%clk 0:02:24]}  Rb8 {[%clk 0:01:48]} 21. Qxa6 {[%clk 0:02:24]}  Rxb2 {[%clk 0:01:48]} 22. Nab5 {[%clk 0:02:24]}  Nxb5 {[%clk 0:01:34]} 23. Nxb5 {[%clk 0:02:25]}  Be7 {[%clk 0:01:30]} 24. Rad1 {[%clk 0:01:57]}  Rf6 {[%clk 0:00:52]} 25. Qa3 {[%clk 0:01:55]}  Rxb5 {[%clk 0:00:40]} 26. cxb5 {[%clk 0:01:52]}  d5 {[%clk 0:00:35]} 27. Qb2 {[%clk 0:01:52]}  e4 {[%clk 0:00:34]} 28. Bxe4 {[%clk 0:01:46]}  Bc5 {[%clk 0:00:20]} 29. Bf3 {[%clk 0:01:41]}  Qb6 {[%clk 0:00:17]} 30. Bxd5 {[%clk 0:01:23]}  Bxd5 {[%clk 0:00:17]} 31. Rxd5 {[%clk 0:01:23]}  Be7 {[%clk 0:00:08]} 32. a4 {[%clk 0:01:19]}  Qe6 {[%clk 0:00:08]} 33. Qe5 {[%clk 0:01:17]}  Qf7 {[%clk 0:00:07]} 34. a5 {[%clk 0:01:11]}  Qg6 {[%clk 0:00:00]} 35. Qxe7 {[%clk 0:01:08]} 1-0


[Site "https://www.chess.com"]

[Event "Titled Tuesday Blitz August 22 Late 2023"]
[White "Sivakumar, Shaaketh"]
[Black "Polaczek, Richard"]
[WhiteFideId "30940176"]
[BlackFideId "200026"]
[WhiteElo "2532"]
[BlackElo "2401"]
[Result "0-1"]
[Round "7"]
[TimeControl "180+1"]
[Date "2023.08.22"]
[WhiteClock "0:00:19"]
[BlackClock "0:00:38"]
[Board "95"]

1. e4 {[%clk 0:03:00]}  Nf6 {[%clk 0:02:59]} 2. Nc3 {[%clk 0:03:00]}  d5 {[%clk 0:02:58]} 3. e5 {[%clk 0:02:59]}  Nfd7 {[%clk 0:02:58]} 4. d4 {[%clk 0:02:59]}  e6 {[%clk 0:02:57]} 5. f4 {[%clk 0:02:59]}  c5 {[%clk 0:02:57]} 6. Nf3 {[%clk 0:03:00]}  Nc6 {[%clk 0:02:57]} 7. Be3 {[%clk 0:02:58]}  Be7 {[%clk 0:02:57]} 8. Qd2 {[%clk 0:02:57]}  O-O {[%clk 0:02:57]} 9. Ne2 {[%clk 0:02:57]}  b6 {[%clk 0:02:52]} 10. c3 {[%clk 0:02:58]}  Ba6 {[%clk 0:02:49]} 11. g4 {[%clk 0:02:56]}  f6 {[%clk 0:02:47]} 12. Ng3 {[%clk 0:02:48]}  Bxf1 {[%clk 0:02:45]} 13. Rxf1 {[%clk 0:02:48]}  cxd4 {[%clk 0:02:41]} 14. Nxd4 {[%clk 0:02:43]}  Nxd4 {[%clk 0:02:37]} 15. cxd4 {[%clk 0:02:43]}  fxe5 {[%clk 0:02:33]} 16. fxe5 {[%clk 0:02:44]}  Rxf1+ {[%clk 0:02:30]} 17. Kxf1 {[%clk 0:02:42]}  Bh4 {[%clk 0:02:27]} 18. Kg2 {[%clk 0:02:41]}  Bxg3 {[%clk 0:02:18]} 19. Kxg3 {[%clk 0:02:41]}  Qe8 {[%clk 0:02:17]} 20. Qd3 {[%clk 0:02:39]}  Rc8 {[%clk 0:02:16]} 21. Rf1 {[%clk 0:02:32]}  Nf8 {[%clk 0:02:10]} 22. h4 {[%clk 0:02:30]}  Qa4 {[%clk 0:02:04]} 23. Bg5 {[%clk 0:02:16]}  Qd7 {[%clk 0:01:41]} 24. Qf3 {[%clk 0:02:07]}  h6 {[%clk 0:01:37]} 25. Bd2 {[%clk 0:02:06]}  Qe7 {[%clk 0:01:33]} 26. Qb3 {[%clk 0:02:01]}  Ng6 {[%clk 0:01:29]} 27. Rh1 {[%clk 0:01:56]}  Qf7 {[%clk 0:01:24]} 28. h5 {[%clk 0:01:53]}  Rf8 {[%clk 0:01:23]} 29. Qe3 {[%clk 0:01:47]}  Ne7 {[%clk 0:01:14]} 30. Bb4 {[%clk 0:01:48]}  a5 {[%clk 0:01:11]} 31. Bd6 {[%clk 0:01:47]}  Kh8 {[%clk 0:01:01]} 32. Rh2 {[%clk 0:01:47]}  Kg8 {[%clk 0:00:58]} 33. Qa3 {[%clk 0:01:43]}  Qf4+ {[%clk 0:00:55]} 34. Kh3 {[%clk 0:01:42]}  Qf1+ {[%clk 0:00:54]} 35. Kg3 {[%clk 0:01:28]}  Nf5+ {[%clk 0:00:52]} 36. gxf5 {[%clk 0:01:28]}  Rxf5 {[%clk 0:00:52]} 37. Qe3 {[%clk 0:00:59]}  Rg5+ {[%clk 0:00:45]} 38. Kh4 {[%clk 0:00:58]}  Qf5 {[%clk 0:00:40]} 39. Rf2 {[%clk 0:00:19]}  Qg4# {[%clk 0:00:38]} 0-1


[Site "https://www.chess.com"]

[Event "Titled Tuesday Blitz August 22 Late 2023"]
[White "Ozen, Batuhan"]
[Black "Lawson, Eric"]
[WhiteFideId "6345123"]
[BlackFideId "2604116"]
[WhiteElo "2374"]
[BlackElo "2524"]
[Result "1-0"]
[Round "7"]
[TimeControl "180+1"]
[Date "2023.08.22"]
[WhiteClock "0:00:38"]
[BlackClock "0:00:46"]
[Board "97"]

1. e4 {[%clk 0:03:00]}  c5 {[%clk 0:02:57]} 2. Nf3 {[%clk 0:03:01]}  Nc6 {[%clk 0:02:57]} 3. Bb5 {[%clk 0:03:01]}  g6 {[%clk 0:02:57]} 4. Bxc6 {[%clk 0:03:00]}  dxc6 {[%clk 0:02:57]} 5. h3 {[%clk 0:03:00]}  Bg7 {[%clk 0:02:57]} 6. d3 {[%clk 0:03:00]}  Nf6 {[%clk 0:02:56]} 7. Nc3 {[%clk 0:03:01]}  c4 {[%clk 0:02:54]} 8. Be3 {[%clk 0:02:58]}  cxd3 {[%clk 0:02:53]} 9. cxd3 {[%clk 0:02:59]}  b6 {[%clk 0:02:51]} 10. Qd2 {[%clk 0:02:59]}  c5 {[%clk 0:02:50]} 11. O-O-O {[%clk 0:02:54]}  h6 {[%clk 0:02:44]} 12. g4 {[%clk 0:02:37]}  Bb7 {[%clk 0:02:39]} 13. g5 {[%clk 0:02:32]}  hxg5 {[%clk 0:02:38]} 14. Nxg5 {[%clk 0:02:25]}  Qd7 {[%clk 0:02:20]} 15. Rhe1 {[%clk 0:02:09]}  Nh7 {[%clk 0:02:13]} 16. Nf3 {[%clk 0:02:02]}  Qxh3 {[%clk 0:02:09]} 17. Qe2 {[%clk 0:01:54]}  Qd7 {[%clk 0:02:03]} 18. d4 {[%clk 0:01:52]}  cxd4 {[%clk 0:02:01]} 19. Bxd4 {[%clk 0:01:49]}  Bxd4 {[%clk 0:01:59]} 20. Rxd4 {[%clk 0:01:44]}  Qg4 {[%clk 0:01:50]} 21. Qe3 {[%clk 0:01:22]}  Nf6 {[%clk 0:01:42]} 22. Rg1 {[%clk 0:01:10]}  Qe6 {[%clk 0:01:36]} 23. Ng5 {[%clk 0:01:07]}  Qe5 {[%clk 0:01:27]} 24. f4 {[%clk 0:01:00]}  Qc5 {[%clk 0:01:27]} 25. Rgd1 {[%clk 0:00:52]}  e5 {[%clk 0:01:14]} 26. fxe5 {[%clk 0:00:49]}  Ng4 {[%clk 0:01:04]} 27. Qf4 {[%clk 0:00:39]}  Nxe5 {[%clk 0:01:03]} 28. Qf6 {[%clk 0:00:38]}  Rh2 {[%clk 0:00:49]} 29. Rd8+ {[%clk 0:00:37]}  Rxd8 {[%clk 0:00:46]} 30. Rxd8# {[%clk 0:00:38]} 1-0


[Site "https://www.chess.com"]

[Event "Titled Tuesday Blitz August 22 Late 2023"]
[White "Lima, Kleyton Alcantara"]
[Black "Ovezdurdyyeva, Jemal"]
[WhiteFideId "22718397"]
[BlackFideId "14001888"]
[WhiteElo "2521"]
[BlackElo "2396"]
[Result "0-1"]
[Round "7"]
[TimeControl "180+1"]
[Date "2023.08.22"]
[WhiteClock "0:00:15"]
[BlackClock "0:00:13"]
[Board "98"]

1. d4 {[%clk 0:03:00]}  Nf6 {[%clk 0:02:58]} 2. c4 {[%clk 0:03:00]}  e6 {[%clk 0:02:58]} 3. g3 {[%clk 0:03:00]}  d5 {[%clk 0:02:54]} 4. Nf3 {[%clk 0:03:00]}  Be7 {[%clk 0:02:51]} 5. Bg2 {[%clk 0:03:00]}  O-O {[%clk 0:02:52]} 6. O-O {[%clk 0:03:00]}  Ne4 {[%clk 0:02:52]} 7. Nbd2 {[%clk 0:02:50]}  f5 {[%clk 0:02:51]} 8. Qc2 {[%clk 0:02:48]}  c6 {[%clk 0:02:50]} 9. b3 {[%clk 0:02:49]}  Nd7 {[%clk 0:02:46]} 10. Bb2 {[%clk 0:02:49]}  Qc7 {[%clk 0:02:45]} 11. Rac1 {[%clk 0:02:47]}  Bf6 {[%clk 0:02:43]} 12. Rfd1 {[%clk 0:02:46]}  g5 {[%clk 0:02:37]} 13. e3 {[%clk 0:02:46]}  g4 {[%clk 0:02:36]} 14. Ne1 {[%clk 0:02:46]}  h5 {[%clk 0:02:31]} 15. h4 {[%clk 0:02:38]}  gxh3 {[%clk 0:02:29]} 16. Bxh3 {[%clk 0:02:38]}  h4 {[%clk 0:02:16]} 17. gxh4 {[%clk 0:02:31]}  Bxh4 {[%clk 0:02:13]} 18. Nd3 {[%clk 0:02:23]}  Kf7 {[%clk 0:02:13]} 19. f4 {[%clk 0:02:18]}  Rg8+ {[%clk 0:02:09]} 20. Kh1 {[%clk 0:02:13]}  Rh8 {[%clk 0:02:05]} 21. Nf3 {[%clk 0:02:06]}  Ndf6 {[%clk 0:02:00]} 22. Nde5+ {[%clk 0:02:02]}  Ke8 {[%clk 0:01:57]} 23. Rg1 {[%clk 0:01:56]}  Nf2+ {[%clk 0:01:51]} 24. Kh2 {[%clk 0:01:55]}  Nxh3 {[%clk 0:01:51]} 25. Kxh3 {[%clk 0:01:47]}  Bf2+ {[%clk 0:01:45]} 26. Kg2 {[%clk 0:01:48]}  Bxg1 {[%clk 0:01:45]} 27. Rxg1 {[%clk 0:01:48]}  Qh7 {[%clk 0:01:40]} 28. Kf1 {[%clk 0:01:43]}  Qh3+ {[%clk 0:01:31]} 29. Ke1 {[%clk 0:01:42]}  Bd7 {[%clk 0:01:26]} 30. Qe2 {[%clk 0:01:27]}  Kd8 {[%clk 0:00:58]} 31. Nf7+ {[%clk 0:01:25]}  Kc7 {[%clk 0:00:58]} 32. Nxh8 {[%clk 0:01:26]}  Rxh8 {[%clk 0:00:58]} 33. cxd5 {[%clk 0:01:21]}  exd5 {[%clk 0:00:57]} 34. Qg2 {[%clk 0:01:09]}  Qxg2 {[%clk 0:00:33]} 35. Rxg2 {[%clk 0:01:10]}  Ng4 {[%clk 0:00:33]} 36. Kd2 {[%clk 0:01:00]}  Rh1 {[%clk 0:00:32]} 37. Ne5 {[%clk 0:00:56]}  Rb1 {[%clk 0:00:29]} 38. Bc3 {[%clk 0:00:44]}  b5 {[%clk 0:00:22]} 39. Nxg4 {[%clk 0:00:39]}  fxg4 {[%clk 0:00:21]} 40. Kc2 {[%clk 0:00:36]}  Rh1 {[%clk 0:00:19]} 41. a3 {[%clk 0:00:24]}  Bf5+ {[%clk 0:00:19]} 42. Kd2 {[%clk 0:00:23]}  Kd6 {[%clk 0:00:17]} 43. Bb4+ {[%clk 0:00:22]}  Ke6 {[%clk 0:00:17]} 44. Bc5 {[%clk 0:00:21]}  a6 {[%clk 0:00:16]} 45. a4 {[%clk 0:00:20]}  bxa4 {[%clk 0:00:15]} 46. bxa4 {[%clk 0:00:21]}  Ra1 {[%clk 0:00:15]} 47. Kc3 {[%clk 0:00:21]}  Rxa4 {[%clk 0:00:14]} 48. Bf8 {[%clk 0:00:21]}  Rc4+ {[%clk 0:00:15]} 49. Kb3 {[%clk 0:00:20]}  a5 {[%clk 0:00:15]} 50. Bc5 {[%clk 0:00:19]}  Rc1 {[%clk 0:00:12]} 51. Ka4 {[%clk 0:00:14]}  Ra1+ {[%clk 0:00:11]} 52. Kb3 {[%clk 0:00:14]}  Re1 {[%clk 0:00:12]} 53. Rg3 {[%clk 0:00:14]}  Re2 {[%clk 0:00:10]} 54. Bb6 {[%clk 0:00:13]}  Bc2+ {[%clk 0:00:08]} 55. Kc3 {[%clk 0:00:11]}  a4 {[%clk 0:00:08]} 56. Bc5 {[%clk 0:00:12]}  Kf5 {[%clk 0:00:08]} 57. Bd6 {[%clk 0:00:09]}  Bd1 {[%clk 0:00:08]} 58. Kd3 {[%clk 0:00:09]}  Rb2 {[%clk 0:00:06]} 59. Kc3 {[%clk 0:00:09]}  Rf2 {[%clk 0:00:05]} 60. Rg1 {[%clk 0:00:09]}  Bb3 {[%clk 0:00:05]} 61. Kb4 {[%clk 0:00:08]}  Rf3 {[%clk 0:00:05]} 62. Kc5 {[%clk 0:00:08]}  Rxe3 {[%clk 0:00:05]} 63. Kxc6 {[%clk 0:00:08]}  Rc3+ {[%clk 0:00:05]} 64. Kb5 {[%clk 0:00:09]}  g3 {[%clk 0:00:06]} 65. Kb4 {[%clk 0:00:08]}  Rd3 {[%clk 0:00:06]} 66. Ka3 {[%clk 0:00:07]}  Bd1+ {[%clk 0:00:03]} 67. Kb2 {[%clk 0:00:07]}  Kg4 {[%clk 0:00:02]} 68. f5 {[%clk 0:00:07]}  Kh3 {[%clk 0:00:02]} 69. Rxg3+ {[%clk 0:00:07]}  Rxg3 {[%clk 0:00:01]} 70. Bxg3 {[%clk 0:00:06]}  Kxg3 {[%clk 0:00:02]} 71. Ka3 {[%clk 0:00:06]}  Bh5 {[%clk 0:00:01]} 72. Kxa4 {[%clk 0:00:06]}  Kf4 {[%clk 0:00:02]} 73. Kb4 {[%clk 0:00:06]}  Ke4 {[%clk 0:00:03]} 74. Kc5 {[%clk 0:00:07]}  Bf7 {[%clk 0:00:03]} 75. f6 {[%clk 0:00:07]}  Kf5 {[%clk 0:00:03]} 76. Kd6 {[%clk 0:00:08]}  Kxf6 {[%clk 0:00:03]} 77. Kc5 {[%clk 0:00:07]}  Kf5 {[%clk 0:00:04]} 78. Kd6 {[%clk 0:00:08]}  Ke4 {[%clk 0:00:05]} 79. Ke7 {[%clk 0:00:09]}  Kxd4 {[%clk 0:00:06]} 80. Kxf7 {[%clk 0:00:10]}  Ke4 {[%clk 0:00:07]} 81. Kf6 {[%clk 0:00:10]}  d4 {[%clk 0:00:08]} 82. Ke6 {[%clk 0:00:11]}  d3 {[%clk 0:00:09]} 83. Kf6 {[%clk 0:00:12]}  d2 {[%clk 0:00:10]} 84. Ke6 {[%clk 0:00:13]}  d1=Q {[%clk 0:00:10]} 85. Kf6 {[%clk 0:00:14]}  Qd4+ {[%clk 0:00:11]} 86. Ke6 {[%clk 0:00:15]}  Qd5+ {[%clk 0:00:12]} 87. Kf6 {[%clk 0:00:16]}  Qe5+ {[%clk 0:00:12]} 88. Kf7 {[%clk 0:00:16]}  Qd6 {[%clk 0:00:13]} 89. Kg7 {[%clk 0:00:15]}  Qe6 {[%clk 0:00:13]} 0-1


[Site "https://www.chess.com"]

[Event "Titled Tuesday Blitz August 22 Late 2023"]
[White "Koziorowicz, Michal"]
[Black "GAO"]
[WhiteFideId "21809194"]
[WhiteElo "2639"]
[BlackElo "2293"]
[Result "1/2-1/2"]
[Round "7"]
[TimeControl "180+1"]
[Date "2023.08.22"]
[WhiteClock "0:00:08"]
[BlackClock "0:00:18"]
[Board "105"]

1. d4 {[%clk 0:03:00]}  Nf6 {[%clk 0:03:00]} 2. c4 {[%clk 0:03:01]}  e6 {[%clk 0:03:00]} 3. Nf3 {[%clk 0:03:00]}  Bb4+ {[%clk 0:03:00]} 4. Bd2 {[%clk 0:03:01]}  Qe7 {[%clk 0:02:59]} 5. g3 {[%clk 0:02:57]}  Nc6 {[%clk 0:02:44]} 6. Bg2 {[%clk 0:02:55]}  Bxd2+ {[%clk 0:02:44]} 7. Qxd2 {[%clk 0:02:47]}  Ne4 {[%clk 0:02:44]} 8. Qc2 {[%clk 0:02:41]}  Qb4+ {[%clk 0:02:42]} 9. Nc3 {[%clk 0:02:23]}  Nxc3 {[%clk 0:02:39]} 10. Qxc3 {[%clk 0:02:22]}  Qxc3+ {[%clk 0:02:39]} 11. bxc3 {[%clk 0:02:23]}  O-O {[%clk 0:02:32]} 12. Kd2 {[%clk 0:02:20]}  Na5 {[%clk 0:02:31]} 13. Kd3 {[%clk 0:02:14]}  b6 {[%clk 0:02:30]} 14. Ne5 {[%clk 0:02:11]}  Rb8 {[%clk 0:02:23]} 15. Rab1 {[%clk 0:02:07]}  f6 {[%clk 0:02:22]} 16. Ng4 {[%clk 0:02:05]}  Ba6 {[%clk 0:02:21]} 17. Ne3 {[%clk 0:02:05]}  Rbc8 {[%clk 0:02:17]} 18. h4 {[%clk 0:01:49]}  d5 {[%clk 0:02:10]} 19. h5 {[%clk 0:01:46]}  Nxc4 {[%clk 0:02:08]} 20. Nxc4 {[%clk 0:01:46]}  Bxc4+ {[%clk 0:02:09]} 21. Kd2 {[%clk 0:01:46]}  Kf7 {[%clk 0:02:08]} 22. h6 {[%clk 0:01:45]}  g6 {[%clk 0:02:07]} 23. e4 {[%clk 0:01:44]}  a5 {[%clk 0:01:56]} 24. a3 {[%clk 0:01:42]}  Rfd8 {[%clk 0:01:45]} 25. exd5 {[%clk 0:01:35]}  Bxd5 {[%clk 0:01:45]} 26. Bxd5 {[%clk 0:01:32]}  Rxd5 {[%clk 0:01:45]} 27. Rh4 {[%clk 0:01:15]}  e5 {[%clk 0:01:42]} 28. Kd3 {[%clk 0:01:05]}  g5 {[%clk 0:01:35]} 29. Re4 {[%clk 0:01:00]}  Ke6 {[%clk 0:01:33]} 30. Kc4 {[%clk 0:00:58]}  Rcd8 {[%clk 0:01:19]} 31. Rb5 {[%clk 0:00:55]}  Rxb5 {[%clk 0:01:14]} 32. Kxb5 {[%clk 0:00:56]}  Kd5 {[%clk 0:01:13]} 33. Re1 {[%clk 0:00:42]}  exd4 {[%clk 0:01:05]} 34. cxd4 {[%clk 0:00:28]}  Rd7 {[%clk 0:01:05]} 35. Re8 {[%clk 0:00:24]}  Kxd4 {[%clk 0:01:01]} 36. Rg8 {[%clk 0:00:24]}  Kd5 {[%clk 0:00:57]} 37. Rg7 {[%clk 0:00:24]}  Kd6 {[%clk 0:00:57]} 38. Kc4 {[%clk 0:00:20]}  c6 {[%clk 0:00:56]} 39. f4 {[%clk 0:00:19]}  gxf4 {[%clk 0:00:55]} 40. gxf4 {[%clk 0:00:20]}  b5+ {[%clk 0:00:55]} 41. Kc3 {[%clk 0:00:21]}  c5 {[%clk 0:00:55]} 42. Kb3 {[%clk 0:00:20]}  Kc6 {[%clk 0:00:51]} 43. Kc3 {[%clk 0:00:19]}  Kd6 {[%clk 0:00:48]} 44. f5 {[%clk 0:00:19]}  Re7 {[%clk 0:00:40]} 45. Kd3 {[%clk 0:00:14]}  b4 {[%clk 0:00:35]} 46. axb4 {[%clk 0:00:12]}  cxb4 {[%clk 0:00:35]} 47. Kc4 {[%clk 0:00:13]}  Rc7+ {[%clk 0:00:31]} 48. Kb3 {[%clk 0:00:13]}  Kc6 {[%clk 0:00:31]} 49. Ka4 {[%clk 0:00:10]}  Kb6 {[%clk 0:00:30]} 50. Kb3 {[%clk 0:00:10]}  Rc3+ {[%clk 0:00:30]} 51. Kb2 {[%clk 0:00:11]}  Rc7 {[%clk 0:00:27]} 52. Kb3 {[%clk 0:00:10]}  Rb7 {[%clk 0:00:22]} 53. Ka4 {[%clk 0:00:09]}  Ra7 {[%clk 0:00:21]} 54. Kb3 {[%clk 0:00:09]}  Ka6 {[%clk 0:00:18]} 55. Ka4 {[%clk 0:00:09]}  Kb6 {[%clk 0:00:17]} 56. Kb3 {[%clk 0:00:08]}  Rb7 {[%clk 0:00:17]} 57. Ka4 {[%clk 0:00:08]}  Rc7 {[%clk 0:00:18]} 58. Kb3 {[%clk 0:00:08]} 1/2-1/2


[Site "https://www.chess.com"]

[Event "Titled Tuesday Blitz August 22 Late 2023"]
[White "SergioMoralesG"]
[Black "Pinheiro, Iung Alicio de O."]
[BlackFideId "2104350"]
[WhiteElo "2413"]
[BlackElo "2585"]
[Result "1-0"]
[Round "7"]
[TimeControl "180+1"]
[Date "2023.08.22"]
[WhiteClock "0:00:36"]
[BlackClock "0:00:09"]
[Board "107"]

1. d4 {[%clk 0:03:00]}  Nf6 {[%clk 0:02:55]} 2. c4 {[%clk 0:03:00]}  e6 {[%clk 0:02:52]} 3. Nf3 {[%clk 0:02:59]}  Bb4+ {[%clk 0:02:50]} 4. Nbd2 {[%clk 0:02:59]}  O-O {[%clk 0:02:47]} 5. a3 {[%clk 0:02:59]}  Be7 {[%clk 0:02:43]} 6. e4 {[%clk 0:02:59]}  d6 {[%clk 0:02:36]} 7. Bd3 {[%clk 0:02:56]}  e5 {[%clk 0:02:36]} 8. dxe5 {[%clk 0:02:47]}  dxe5 {[%clk 0:02:35]} 9. Nxe5 {[%clk 0:02:45]}  Bc5 {[%clk 0:02:20]} 10. O-O {[%clk 0:02:40]}  Re8 {[%clk 0:01:29]} 11. Ndf3 {[%clk 0:02:39]}  Bd6 {[%clk 0:01:18]} 12. Bf4 {[%clk 0:02:10]}  Nh5 {[%clk 0:01:15]} 13. Nxf7 {[%clk 0:01:58]}  Kxf7 {[%clk 0:01:04]} 14. Ng5+ {[%clk 0:01:58]}  Kg6 {[%clk 0:00:26]} 15. e5+ {[%clk 0:01:48]}  Bf5 {[%clk 0:00:26]} 16. Bxf5+ {[%clk 0:01:36]}  Kxf5 {[%clk 0:00:27]} 17. Qxh5 {[%clk 0:01:36]}  Kxf4 {[%clk 0:00:27]} 18. Nh3+ {[%clk 0:00:38]}  Ke4 {[%clk 0:00:23]} 19. Qf3+ {[%clk 0:00:38]}  Kxe5 {[%clk 0:00:08]} 20. Rfe1+ {[%clk 0:00:36]}  Kd4 {[%clk 0:00:09]} 21. Qd5# {[%clk 0:00:36]} 1-0


[Site "https://www.chess.com"]

[Event "Titled Tuesday Blitz August 22 Late 2023"]
[White "Arnold, Ken"]
[Black "Martinez Reyes, Pedro Ramon"]
[WhiteFideId "2056836"]
[BlackFideId "3901807"]
[WhiteElo "2404"]
[BlackElo "2581"]
[Result "1-0"]
[Round "7"]
[TimeControl "180+1"]
[Date "2023.08.22"]
[WhiteClock "0:00:47"]
[BlackClock "0:01:16"]
[Board "108"]

1. e4 {[%clk 0:03:00]}  c5 {[%clk 0:02:52]} 2. Nf3 {[%clk 0:03:00]}  Nc6 {[%clk 0:02:50]} 3. Bb5 {[%clk 0:02:58]}  d6 {[%clk 0:02:44]} 4. d4 {[%clk 0:02:55]}  cxd4 {[%clk 0:02:44]} 5. Nxd4 {[%clk 0:02:54]}  Bd7 {[%clk 0:02:45]} 6. O-O {[%clk 0:02:52]}  Nxd4 {[%clk 0:02:44]} 7. Bxd7+ {[%clk 0:02:51]}  Qxd7 {[%clk 0:02:45]} 8. Qxd4 {[%clk 0:02:50]}  Nf6 {[%clk 0:02:46]} 9. c4 {[%clk 0:02:49]}  g6 {[%clk 0:02:46]} 10. Nc3 {[%clk 0:02:48]}  Bg7 {[%clk 0:02:46]} 11. Bg5 {[%clk 0:02:47]}  O-O {[%clk 0:02:47]} 12. Qd3 {[%clk 0:02:47]}  Rac8 {[%clk 0:02:46]} 13. Rac1 {[%clk 0:02:47]}  Qe6 {[%clk 0:02:46]} 14. b3 {[%clk 0:02:42]}  h6 {[%clk 0:02:44]} 15. Bxf6 {[%clk 0:02:41]}  Bxf6 {[%clk 0:02:45]} 16. Nd5 {[%clk 0:02:41]}  Bg7 {[%clk 0:02:45]} 17. a4 {[%clk 0:02:38]}  a6 {[%clk 0:02:44]} 18. g3 {[%clk 0:02:35]}  Rc6 {[%clk 0:02:43]} 19. Rc2 {[%clk 0:02:19]}  Qd7 {[%clk 0:02:43]} 20. Rfc1 {[%clk 0:02:15]}  e6 {[%clk 0:02:43]} 21. Ne3 {[%clk 0:02:13]}  Rfc8 {[%clk 0:02:42]} 22. Kg2 {[%clk 0:02:12]}  Qc7 {[%clk 0:02:42]} 23. h4 {[%clk 0:02:09]}  h5 {[%clk 0:02:35]} 24. Rd1 {[%clk 0:01:51]}  b5 {[%clk 0:02:34]} 25. axb5 {[%clk 0:01:49]}  axb5 {[%clk 0:02:34]} 26. Rcd2 {[%clk 0:01:49]}  b4 {[%clk 0:02:08]} 27. Ra2 {[%clk 0:01:44]}  Qb6 {[%clk 0:02:03]} 28. Rc1 {[%clk 0:01:40]}  Bd4 {[%clk 0:02:03]} 29. Nd1 {[%clk 0:01:31]}  Bc5 {[%clk 0:01:56]} 30. Rca1 {[%clk 0:01:29]}  Qb7 {[%clk 0:01:57]} 31. Qf3 {[%clk 0:01:27]}  R6c7 {[%clk 0:01:54]} 32. Nb2 {[%clk 0:01:24]}  Bd4 {[%clk 0:01:52]} 33. Rd1 {[%clk 0:01:21]}  Bc5 {[%clk 0:01:50]} 34. Nd3 {[%clk 0:01:15]}  Rd7 {[%clk 0:01:48]} 35. Rda1 {[%clk 0:01:05]}  Rcd8 {[%clk 0:01:45]} 36. Ra5 {[%clk 0:00:59]}  Qc7 {[%clk 0:01:41]} 37. Rb5 {[%clk 0:00:58]}  Qc6 {[%clk 0:01:40]} 38. Raa5 {[%clk 0:00:57]}  Qc7 {[%clk 0:01:27]} 39. e5 {[%clk 0:00:54]}  Bd4 {[%clk 0:01:22]} 40. exd6 {[%clk 0:00:49]}  Rxd6 {[%clk 0:01:21]} 41. Rb7 {[%clk 0:00:48]}  Qxa5 {[%clk 0:01:15]} 42. Qxf7+ {[%clk 0:00:47]}  Kh8 {[%clk 0:01:16]} 43. Qh7# {[%clk 0:00:47]} 1-0


[Site "https://www.chess.com"]